[Event "African Online-ch U20-Open 2021"]
[Site "Online"]
[Date "2021.02.01"]
[Round "1.1"]
[White "Brahami, Lamine"]
[Black "Wael, Abdel Rahman"]
[Result "1-0"]
[WhiteElo "2194"]
[BlackElo "1570"]
[PlyCount "95"]
[EventDate "2021.02.01"]
[EventType "swiss"]
[EventCountry "NET"]
[TimeControl "1500+10"]
[WhiteClock "0:10:33"]
[BlackClock "0:02:44"]

1. d4 {[%emt 0:00:00]} d5 {[%emt 0:00:04]} 2. c4 {[%emt 0:00:08]} e6 {[%emt 0:00:26]} 3. Nf3 {[%emt 0:00:06]} Nf6 {[%emt 0:00:05]} 4. Nc3 {[%emt 0:00:03]} Be7 {[%emt 0:00:04]} 5. Bg5 {[%emt 0:00:05]} h6 {[%emt 0:00:04]} 6. Bh4 {[%emt 0:00:02]} b6 {[%emt 0:00:03]} 7. e3 {[%emt 0:00:23]} Bb7 {[%emt 0:00:05]} 8. Rc1 {[%emt 0:00:40]} Nbd7 {[%emt 0:00:05]} 9. cxd5 {[%emt 0:00:08]} Nxd5 {[%emt 0:01:09]} 10. Bxe7 {[%emt 0:00:08]} Nxe7 {[%emt 0:00:16]} 11. Nb5 {[%emt 0:00:58]} Nc6 {[%emt 0:00:50]} 12. Bd3 {[%emt 0:00:15]} a6 {[%emt 0:00:09]} 13. Nc3 {[%emt 0:00:03]} b5 {[%emt 0:00:10]} 14. O-O {[%emt 0:00:02]} Nb4 {[%emt 0:00:14]} 15. Bb1 {[%emt 0:00:11]} Nd5 {[%emt 0:00:51]} 16. Ne4 {[%emt 0:00:42]} Rc8 {[%emt 0:02:27]} 17. Nc5 {[%emt 0:00:15]} Nxc5 {[%emt 0:00:11]} 18. dxc5 {[%emt 0:00:02]} Bc6 {[%emt 0:02:24]} 19. Ne5 {[%emt 0:00:32]} Ba8 {[%emt 0:01:04]} 20. a4 {[%emt 0:00:12]} Qf6 {[%emt 0:00:50]} 21. f4 {[%emt 0:02:04]} Rd8 {[%emt 0:00:31]} 22. Qb3 {[%emt 0:00:11]} b4 {[%emt 0:03:02]} 23. a5 {[%emt 0:00:19]} g5 {[%emt 0:02:00]} 24. Ng4 {[%emt 0:01:40]} Qe7 {[%emt 0:00:25]} 25. f5 {[%emt 0:00:37]} h5 {[%emt 0:01:13]} 26. f6 {[%emt 0:00:23]} Qd7 {[%emt 0:02:21]} 27. Ne5 {[%emt 0:00:04]} Qb5 {[%emt 0:01:04]} 28. Bg6 {[%emt 0:05:42]} fxg6 {[%emt 0:01:56]} 29. Qc2 {[%emt 0:00:26]} Rh6 {[%emt 0:01:24]} 30. f7+ {[%emt 0:00:22]} Ke7 {[%emt 0:00:15]} 31. Nxg6+ {[%emt 0:00:02]} Kd7 {[%emt 0:01:43]} 32. f8=Q {[%emt 0:00:10]} Rxf8 {[%emt 0:00:03]} 33. Rxf8 {[%emt 0:00:04]} Nxe3 {[%emt 0:00:04]} 34. Ne5+ {[%emt 0:00:39]} Ke7 {[%emt 0:00:09]} 35. Rf7+ {[%emt 0:00:27]} Ke8 {[%emt 0:00:02]} 36. Qf2 {[%emt 0:00:21]} Nf5 {[%emt 0:00:12]} 37. Rxf5 {[%emt 0:00:31]} exf5 {[%emt 0:00:51]} 38. Qxf5 {[%emt 0:00:04]} Bd5 {[%emt 0:00:02]} 39. Qc8+ {[%emt 0:00:15]} Ke7 {[%emt 0:00:05]} 40. Qxc7+ {[%emt 0:00:02]} Ke6 {[%emt 0:00:02]} 41. Qd6+ {[%emt 0:00:27]} Kf5 {[%emt 0:00:03]} 42. Qxd5 {[%emt 0:00:02]} Re6 {[%emt 0:00:09]} 43. Nd7+ {[%emt 0:00:44]} Kf4 {[%emt 0:00:21]} 44. g3+ {[%emt 0:00:27]} Kg4 {[%emt 0:00:08]} 45. Qxe6+ {[%emt 0:00:10]} Kf3 {[%emt 0:00:05]} 46. Qd5+ {[%emt 0:00:22]} Ke2 {[%emt 0:00:09]} 47. Rc2+ {[%emt 0:00:49]} Ke1 {[%emt 0:00:16]} 48. Qd2# {[%emt 0:00:08]} 1-0

[Event "African Online-ch U20-Open 2021"]
[Site "Online"]
[Date "2021.02.01"]
[Round "1.2"]
[White "Oosthuizen, Michal Jacobus"]
[Black "Lutuima, Amaro"]
[Result "0-1"]
[WhiteElo "1920"]
[BlackElo "2050"]
[PlyCount "98"]
[EventDate "2021.02.01"]
[EventType "swiss"]
[EventCountry "NET"]
[TimeControl "1500+10"]
[WhiteClock "0:04:31"]
[BlackClock "0:18:45"]

1. c4 {[%emt 0:00:00]} e5 {[%emt 0:00:07]} 2. g3 {[%emt 0:00:03]} f5 {[%emt 0:00:08]} 3. Bg2 {[%emt 0:00:07]} Nf6 {[%emt 0:00:03]} 4. d3 {[%emt 0:00:36]} d6 {[%emt 0:00:09]} 5. e3 {[%emt 0:00:16]} c6 {[%emt 0:00:06]} 6. Ne2 {[%emt 0:00:33]} Be7 {[%emt 0:00:04]} 7. Nbc3 {[%emt 0:00:21]} O-O {[%emt 0:00:05]} 8. O-O {[%emt 0:00:04]} Be6 {[%emt 0:00:09]} 9. b3 {[%emt 0:00:43]} Nbd7 {[%emt 0:00:17]} 10. Bb2 {[%emt 0:00:07]} d5 {[%emt 0:00:14]} 11. cxd5 {[%emt 0:00:21]} cxd5 {[%emt 0:00:04]} 12. f4 {[%emt 0:00:42]} e4 {[%emt 0:00:54]} 13. Nd4 {[%emt 0:00:47]} Qb6 {[%emt 0:00:10]} 14. Re1 {[%emt 0:01:16]} Rfd8 {[%emt 0:00:12]} 15. Na4 {[%emt 0:02:24]} Qa6 {[%emt 0:00:09]} 16. dxe4 {[%emt 0:00:30]} Nxe4 {[%emt 0:00:14]} 17. Bxe4 {[%emt 0:00:08]} dxe4 {[%emt 0:00:13]} 18. Rc1 {[%emt 0:00:43]} Rac8 {[%emt 0:00:14]} 19. Rxc8 {[%emt 0:01:39]} Rxc8 {[%emt 0:00:10]} 20. Qe2 {[%emt 0:00:02]} Qxe2 {[%emt 0:00:06]} 21. Rxe2 {[%emt 0:00:04]} Nf8 {[%emt 0:01:01]} 22. Kf2 {[%emt 0:00:38]} Kf7 {[%emt 0:00:08]} 23. Rd2 {[%emt 0:02:11]} Bb4 {[%emt 0:00:14]} 24. Rd1 {[%emt 0:00:06]} Bd7 {[%emt 0:00:12]} 25. a3 {[%emt 0:00:48]} Ba5 {[%emt 0:00:20]} 26. Ba1 {[%emt 0:02:03]} b5 {[%emt 0:01:29]} 27. Nb2 {[%emt 0:02:48]} Bb6 {[%emt 0:00:51]} 28. Ke2 {[%emt 0:03:43]} g6 {[%emt 0:00:56]} 29. b4 {[%emt 0:01:27]} Ne6 {[%emt 0:00:51]} 30. Nb3 {[%emt 0:00:53]} Ke7 {[%emt 0:01:18]} 31. Rc1 {[%emt 0:00:10] White offered a draw.} Rxc1 {[%emt 0:00:21]} 32. Nxc1 {[%emt 0:00:03]} Nc7 {[%emt 0:00:13]} 33. Nd1 {[%emt 0:00:06]} Be6 {[%emt 0:00:05]} 34. Bd4 {[%emt 0:00:06]} Bc4+ {[%emt 0:00:04]} 35. Kd2 {[%emt 0:00:07]} Bxd4 {[%emt 0:00:42]} 36. exd4 {[%emt 0:00:03]} Nd5 {[%emt 0:00:05]} 37. Ne2 {[%emt 0:00:10]} Kd6 {[%emt 0:00:27]} 38. Ne3 {[%emt 0:00:07]} Nxe3 {[%emt 0:00:22]} 39. Kxe3 {[%emt 0:00:28]} Bxe2 {[%emt 0:00:04]} 40. Kxe2 {[%emt 0:00:05]} Kd5 {[%emt 0:00:05]} 41. Ke3 {[%emt 0:00:02]} h6 {[%emt 0:00:05]} 42. h3 {[%emt 0:00:31]} h5 {[%emt 0:00:07]} 43. g4 {[%emt 0:00:18]} hxg4 {[%emt 0:00:10]} 44. hxg4 {[%emt 0:00:01]} fxg4 {[%emt 0:00:04]} 45. Kf2 {[%emt 0:00:11]} Kxd4 {[%emt 0:00:05]} 46. Kg3 {[%emt 0:00:02]} e3 {[%emt 0:00:04]} 47. Kxg4 {[%emt 0:00:03]} e2 {[%emt 0:00:04]} 48. f5 {[%emt 0:00:02]} gxf5+ {[%emt 0:00:04]} 49. Kxf5 {[%emt 0:00:01]} e1=Q {[%emt 0:00:06] #R} 0-1

[Event "African Online-ch U20-Open 2021"]
[Site "Online"]
[Date "2021.02.01"]
[Round "1.3"]
[White "Elier, Ali"]
[Black "George Samir, David"]
[Result "0-1"]
[WhiteElo "2037"]
[BlackElo "1775"]
[PlyCount "56"]
[EventDate "2021.02.01"]
[EventType "swiss"]
[EventCountry "NET"]
[TimeControl "1500+10"]
[WhiteClock "0:02:09"]
[BlackClock "0:11:58"]

{Black stopped clock for 44 seconds. Clock started by Arbiter.} 1. e4 {[%emt 0:00:05]} c5 {[%emt 0:00:03]} 2. d4 {[%emt 0:00:02]} cxd4 {[%emt 0:00:02]} 3. c3 {[%emt 0:00:02]} dxc3 {[%emt 0:00:02]} 4. Nxc3 {[%emt 0:00:02]} Nc6 {[%emt 0:00:03]} 5. Nf3 {[%emt 0:00:02]} d6 {[%emt 0:00:03]} 6. Bc4 {[%emt 0:00:05]} a6 {[%emt 0:00:01] White stopped clock for 385 seconds.} 7. O-O {[%emt 0:01:06]} Nf6 {[%emt 0:00:06]} 8. h3 {[%emt 0:00:42]} e6 {[%emt 0:00:35]} 9. Bf4 {[%emt 0:00:40]} Be7 {[%emt 0:00:25]} 10. Qe2 {[%emt 0:00:17]} e5 {[%emt 0:00:14]} 11. Be3 {[%emt 0:00:04]} O-O {[%emt 0:00:03]} 12. Rfd1 {[%emt 0:00:16]} b5 {[%emt 0:00:40] White stopped clock for 235 seconds.} 13. Bb3 {[%emt 0:00:33]} Bb7 {[%emt 0:00:31]} 14. Rac1 {[%emt 0:00:27]} Rc8 {[%emt 0:00:10]} 15. a3 {[%emt 0:03:29]} h6 {[%emt 0:01:33]} 16. Ba2 {[%emt 0:01:09]} Re8 {[%emt 0:00:48]} 17. Nh4 {[%emt 0:00:17]} b4 {[%emt 0:01:05]} 18. axb4 {[%emt 0:08:20]} Nxb4 {[%emt 0:00:05]} 19. Bb3 {[%emt 0:00:39]} Bf8 {[%emt 0:03:17]} 20. Qf3 {[%emt 0:01:34]} d5 {[%emt 0:03:46]} 21. exd5 {[%emt 0:01:59]} e4 {[%emt 0:00:09]} 22. Qe2 {[%emt 0:02:37]} Nd3 {[%emt 0:00:17]} 23. Rxd3 {[%emt 0:00:54]} exd3 {[%emt 0:00:18]} 24. Qxd3 {[%emt 0:00:01]} Nxd5 {[%emt 0:00:44]} 25. Bc2 {[%emt 0:01:49]} Nf6 {[%emt 0:00:41]} 26. Qf5 {[%emt 0:00:01]} Qd7 {[%emt 0:00:24]} 27. Qa5 {[%emt 0:00:14]} Rxe3 {[%emt 0:01:34]} 28. fxe3 {[%emt 0:00:05]} Qd2 {[%emt 0:00:03] White stopped clock for 132 seconds. #T} 0-1

[Event "African Online-ch U20-Open 2021"]
[Site "Online"]
[Date "2021.02.01"]
[Round "1.4"]
[White "Shah, Darshan Samir"]
[Black "Mhango, Banele"]
[Result "0-1"]
[WhiteElo "1502"]
[BlackElo "2117"]
[PlyCount "92"]
[EventDate "2021.02.01"]
[EventType "swiss"]
[EventCountry "NET"]
[TimeControl "1500+10"]
[WhiteClock "0:00:53"]
[BlackClock "0:13:14"]

{White stopped clock for 101 seconds. Clock started by Arbiter.} 1. Nf3 {[%emt 0:00:01]} Nf6 {[%emt 0:00:08]} 2. d4 {[%emt 0:00:07]} g6 {[%emt 0:00:02]} 3. Nbd2 {[%emt 0:00:11]} d5 {[%emt 0:00:06]} 4. b4 {[%emt 0:00:27]} Bg7 {[%emt 0:00:15]} 5. e3 {[%emt 0:00:16]} O-O {[%emt 0:00:11]} 6. c4 {[%emt 0:00:45]} c6 {[%emt 0:01:04]} 7. a4 {[%emt 0:00:50]} Bg4 {[%emt 0:02:07]} 8. Bb2 {[%emt 0:00:48]} Nbd7 {[%emt 0:00:33]} 9. h3 {[%emt 0:01:06]} Bxf3 {[%emt 0:00:04]} 10. Nxf3 {[%emt 0:02:22]} a5 {[%emt 0:02:03]} 11. b5 {[%emt 0:00:23]} c5 {[%emt 0:00:50]} 12. Bd3 {[%emt 0:00:32]} dxc4 {[%emt 0:01:18]} 13. Bxc4 {[%emt 0:00:19]} Rc8 {[%emt 0:00:13]} 14. d5 {[%emt 0:00:54]} Nb6 {[%emt 0:00:07]} 15. Ba2 {[%emt 0:00:55]} Nfxd5 {[%emt 0:00:15]} 16. Bxg7 {[%emt 0:00:58]} Kxg7 {[%emt 0:00:05]} 17. Qc2 {[%emt 0:01:22]} Qd6 {[%emt 0:02:26]} 18. O-O {[%emt 0:00:49]} Nb4 {[%emt 0:00:06]} 19. Qb2+ {[%emt 0:00:35]} Qf6 {[%emt 0:00:05]} 20. Qxf6+ {[%emt 0:00:48]} Kxf6 {[%emt 0:00:04]} 21. Rfd1 {[%emt 0:01:15]} Rfd8 {[%emt 0:00:07]} 22. Nd2 {[%emt 0:00:43]} c4 {[%emt 0:02:51]} 23. Ne4+ {[%emt 0:01:19]} Ke5 {[%emt 0:01:37]} 24. Nc3 {[%emt 0:01:06]} Rxd1+ {[%emt 0:00:34]} 25. Rxd1 {[%emt 0:00:09]} Nxa2 {[%emt 0:00:11]} 26. Nxa2 {[%emt 0:00:05]} c3 {[%emt 0:00:26]} 27. Rc1 {[%emt 0:00:42]} Nxa4 {[%emt 0:00:12]} 28. f3 {[%emt 0:00:07]} Kd5 {[%emt 0:00:05]} 29. Kf2 {[%emt 0:00:05]} Kc4 {[%emt 0:00:03]} 30. Ke2 {[%emt 0:00:12]} Rd8 {[%emt 0:00:05]} 31. Rc2 {[%emt 0:00:10]} Kb3 {[%emt 0:00:04]} 32. Rc1 {[%emt 0:01:40]} Rd2+ {[%emt 0:00:07]} 33. Ke1 {[%emt 0:00:39]} Rxa2 {[%emt 0:00:05]} 34. Rb1+ {[%emt 0:01:38]} Rb2 {[%emt 0:00:10]} 35. Rxb2+ {[%emt 0:06:09]} cxb2 {[%emt 0:00:03]} 36. Kf2 {[%emt 0:00:15]} b1=Q {[%emt 0:00:05]} 37. Kg3 {[%emt 0:00:05]} Nc3 {[%emt 0:00:05]} 38. b6 {[%emt 0:00:04]} Qe1+ {[%emt 0:00:04]} 39. Kg4 {[%emt 0:00:04]} f5+ {[%emt 0:00:04]} 40. Kg5 {[%emt 0:00:15]} Qxe3+ {[%emt 0:00:05]} 41. f4 {[%emt 0:00:02]} Ne4+ {[%emt 0:00:05]} 42. Kh6 {[%emt 0:00:04]} Qxf4+ {[%emt 0:00:03]} 43. Kg7 {[%emt 0:00:07]} Qe5+ {[%emt 0:00:04]} 44. Kh6 {[%emt 0:00:05]} g5 {[%emt 0:00:02]} 45. Kh5 {[%emt 0:00:02]} Qf6 {[%emt 0:00:04]} 46. g4 {[%emt 0:00:17]} Qg6# {[%emt 0:00:03]} 0-1

[Event "African Online-ch U20-Open 2021"]
[Site "Online"]
[Date "2021.02.01"]
[Round "1.5"]
[White "Borges Delgado, Gabriel Jose"]
[Black "Soojay, Jorah"]
[Result "1-0"]
[WhiteElo "2228"]
[BlackElo "1478"]
[PlyCount "71"]
[EventDate "2021.02.01"]
[EventType "swiss"]
[EventCountry "NET"]
[TimeControl "1500+10"]
[WhiteClock "0:18:45"]
[BlackClock "0:05:55"]

1. e4 {[%emt 0:00:00]} d5 {[%emt 0:00:06]} 2. exd5 {[%emt 0:00:12]} Nf6 {[%emt 0:00:03]} 3. Nf3 {[%emt 0:00:06]} Nxd5 {[%emt 0:00:03]} 4. d4 {[%emt 0:00:05]} Bg4 {[%emt 0:00:06]} 5. Bc4 {[%emt 0:00:08]} c6 {[%emt 0:00:10]} 6. O-O {[%emt 0:00:09]} e6 {[%emt 0:00:07]} 7. Re1 {[%emt 0:00:05]} Be7 {[%emt 0:00:08]} 8. h3 {[%emt 0:00:05]} Bh5 {[%emt 0:00:05]} 9. Nc3 {[%emt 0:00:07]} O-O {[%emt 0:00:37]} 10. Bb3 {[%emt 0:00:15]} Na6 {[%emt 0:00:18]} 11. Ne4 {[%emt 0:00:05]} h6 {[%emt 0:00:53]} 12. Ng3 {[%emt 0:00:08]} Bg6 {[%emt 0:00:08]} 13. Ne5 {[%emt 0:00:05]} Bh7 {[%emt 0:00:20]} 14. Qe2 {[%emt 0:00:06]} Bf6 {[%emt 0:00:06]} 15. c3 {[%emt 0:00:11]} Nac7 {[%emt 0:00:08]} 16. Qg4 {[%emt 0:01:55]} Kh8 {[%emt 0:00:51]} 17. Nh5 {[%emt 0:00:09]} Bf5 {[%emt 0:00:13]} 18. Qf3 {[%emt 0:00:54]} Bxe5 {[%emt 0:02:03]} 19. Rxe5 {[%emt 0:00:29]} Bg6 {[%emt 0:00:30]} 20. Ng3 {[%emt 0:00:41]} Qf6 {[%emt 0:01:34]} 21. Qg4 {[%emt 0:02:28]} Nb6 {[%emt 0:02:44]} 22. Bd2 {[%emt 0:00:56]} Nd7 {[%emt 0:00:09]} 23. Re3 {[%emt 0:00:07]} Nd5 {[%emt 0:01:04]} 24. Rf3 {[%emt 0:00:13]} Qe7 {[%emt 0:00:06]} 25. Re1 {[%emt 0:00:16]} Bh7 {[%emt 0:03:59]} 26. Bxd5 {[%emt 0:00:22]} cxd5 {[%emt 0:00:24]} 27. Nh5 {[%emt 0:00:07]} Bg6 {[%emt 0:02:24]} 28. Nf4 {[%emt 0:00:20]} Bh7 {[%emt 0:01:03]} 29. Nxd5 {[%emt 0:00:09]} Qd6 {[%emt 0:00:07]} 30. Nf4 {[%emt 0:00:18]} Nf6 {[%emt 0:00:04]} 31. Qh4 {[%emt 0:00:12]} Ne4 {[%emt 0:00:23]} 32. Bc1 {[%emt 0:00:21]} g5 {[%emt 0:00:17]} 33. Qxh6 {[%emt 0:00:05]} gxf4 {[%emt 0:00:03]} 34. Rxe4 {[%emt 0:00:07] Black offered a draw.} Rg8 {[%emt 0:03:30]} 35. Bxf4 {[%emt 0:00:10]} Qd5 {[%emt 0:00:09]} 36. Be5+ {[%emt 0:00:09] #r} 1-0

[Event "African Online-ch U20-Open 2021"]
[Site "Online"]
[Date "2021.02.01"]
[Round "1.6"]
[White "Elayeb, Med Yessine"]
[Black "Junior, Domingos"]
[Result "0-1"]
[WhiteElo "1666"]
[BlackElo "1894"]
[PlyCount "110"]
[EventDate "2021.02.01"]
[EventType "swiss"]
[EventCountry "NET"]
[TimeControl "1500+10"]
[WhiteClock "0:00:11"]
[BlackClock "0:07:26"]

1. Nf3 {[%emt 0:00:00]} Nf6 {[%emt 0:00:06]} 2. g3 {[%emt 0:00:03]} g6 {[%emt 0:00:02]} 3. Bg2 {[%emt 0:00:04]} Bg7 {[%emt 0:00:02]} 4. O-O {[%emt 0:00:02]} O-O {[%emt 0:00:07]} 5. d4 {[%emt 0:00:02]} d6 {[%emt 0:00:02]} 6. c4 {[%emt 0:00:02]} Nbd7 {[%emt 0:00:03]} 7. Nc3 {[%emt 0:00:08]} c6 {[%emt 0:00:07]} 8. e4 {[%emt 0:00:38]} e5 {[%emt 0:00:04]} 9. h3 {[%emt 0:00:08]} Re8 {[%emt 0:00:29]} 10. Be3 {[%emt 0:00:51]} exd4 {[%emt 0:00:22]} 11. Nxd4 {[%emt 0:00:03]} Nc5 {[%emt 0:00:04]} 12. Qc2 {[%emt 0:00:02]} a5 {[%emt 0:00:04]} 13. Rab1 {[%emt 0:01:09]} Qe7 {[%emt 0:00:58]} 14. Rfe1 {[%emt 0:02:01]} Nfxe4 {[%emt 0:01:23]} 15. Nxe4 {[%emt 0:02:47]} Nxe4 {[%emt 0:00:06]} 16. Bxe4 {[%emt 0:00:20]} Qxe4 {[%emt 0:00:09]} 17. Bd2 {[%emt 0:00:12]} Qxe1+ {[%emt 0:02:32]} 18. Rxe1 {[%emt 0:02:39]} Rxe1+ {[%emt 0:00:06]} 19. Bxe1 {[%emt 0:00:02]} Bxd4 {[%emt 0:00:04]} 20. Qe4 {[%emt 0:03:13]} Be5 {[%emt 0:01:12]} 21. f4 {[%emt 0:01:12]} Bf5 {[%emt 0:00:07]} 22. Qe2 {[%emt 0:02:06]} Bf6 {[%emt 0:01:15]} 23. g4 {[%emt 0:00:12]} Be6 {[%emt 0:01:25]} 24. b3 {[%emt 0:02:54]} a4 {[%emt 0:01:15]} 25. Qd3 {[%emt 0:02:41]} axb3 {[%emt 0:00:10]} 26. axb3 {[%emt 0:00:02]} Ra1 {[%emt 0:00:31]} 27. g5 {[%emt 0:01:22]} Rxe1+ {[%emt 0:03:23]} 28. Kf2 {[%emt 0:00:04]} Bf5 {[%emt 0:00:03]} 29. Qd2 {[%emt 0:00:55]} Rh1 {[%emt 0:00:23]} 30. Qxd6 {[%emt 0:01:30]} Bc3 {[%emt 0:00:36]} 31. Qb8+ {[%emt 0:00:11]} Kg7 {[%emt 0:00:05]} 32. Qxb7 {[%emt 0:00:02]} Bd4+ {[%emt 0:00:34]} 33. Ke2 {[%emt 0:00:26]} Rh2+ {[%emt 0:00:07]} 34. Kf3 {[%emt 0:00:20]} Rxh3+ {[%emt 0:02:39]} 35. Kg2 {[%emt 0:00:03]} Re3 {[%emt 0:00:10]} 36. Qa6 {[%emt 0:00:51]} Be4+ {[%emt 0:00:30]} 37. Kf2 {[%emt 0:00:19]} Rxb3+ {[%emt 0:00:06]} 38. Ke2 {[%emt 0:00:03]} Rb2+ {[%emt 0:00:07]} 39. Kd1 {[%emt 0:00:05]} Be3 {[%emt 0:01:16]} 40. Qa1 {[%emt 0:00:45]} Bd4 {[%emt 0:00:06]} 41. Qa5 {[%emt 0:00:21]} c5 {[%emt 0:00:25]} 42. Qd8 {[%emt 0:00:18]} Bc3 {[%emt 0:00:59]} 43. Qe7 {[%emt 0:00:28]} Bf3+ {[%emt 0:00:31]} 44. Kc1 {[%emt 0:00:06]} Bd4 {[%emt 0:00:16]} 45. Qd8 {[%emt 0:00:35]} Rb4 {[%emt 0:00:16]} 46. Qe7 {[%emt 0:00:06]} Rxc4+ {[%emt 0:00:05]} 47. Kd2 {[%emt 0:00:02]} Bg4 {[%emt 0:00:15]} 48. Kd3 {[%emt 0:00:03]} Rc3+ {[%emt 0:00:04]} 49. Kd2 {[%emt 0:00:02]} Bf5 {[%emt 0:00:06]} 50. Qd8 {[%emt 0:00:15]} Rd3+ {[%emt 0:00:06]} 51. Ke2 {[%emt 0:00:14]} c4 {[%emt 0:00:05]} 52. Qd6 {[%emt 0:00:16]} c3 {[%emt 0:00:21]} 53. Qc6 {[%emt 0:00:20]} Rd2+ {[%emt 0:00:05]} 54. Ke1 {[%emt 0:00:07]} Bg4 {[%emt 0:00:12]} 55. Qa6 {[%emt 0:00:17]} Rd1# {[%emt 0:00:08]} 0-1

[Event "African Online-ch U20-Open 2021"]
[Site "Online"]
[Date "2021.02.01"]
[Round "1.7"]
[White "Vasco Mateus, Felizardo Viageiro"]
[Black "Masaiti, Gideon"]
[Result "1-0"]
[ECO "C05"]
[WhiteElo "1862"]
[BlackElo "1442"]
[Annotator "NA"]
[PlyCount "149"]
[EventDate "2021.02.01"]
[EventType "swiss"]
[EventCountry "NET"]
[SourceTitle "playchess.com"]
[Source "ChessBase"]
[SourceQuality "1"]
[TimeControl "1500+10"]

1. e4 {[%emt 0:00:00]} e6 {[%emt 0:00:05]} 2. d4 {[%emt 0:00:11]} d5 {[%emt 0:00:04]} 3. Nd2 {[%emt 0:00:20]} Nf6 {[%emt 0:00:06]} 4. e5 {[%emt 0:00:04]} Nfd7 {[%emt 0:00:03]} 5. f4 {[%emt 0:00:06]} Be7 {[%emt 0:00:05]} 6. Bd3 {[%emt 0:00:06]} c5 {[%emt 0:00:09]} 7. c3 {[%emt 0:00:04]} Nc6 {[%emt 0:00:06]} 8. Ne2 {[%emt 0:00:08]} Qb6 {[%emt 0:00:07]} 9. Nf3 {[%emt 0:00:04]} h6 {[%emt 0:00:24]} 10. O-O {[%emt 0:00:26]} c4 {[%emt 0:00:10]} 11. Bc2 {[%emt 0:00:04]} O-O {[%emt 0:00:03]} 12. f5 {[%emt 0:00:09]} Ncxe5 {[%emt 0:00:14]} 13. Nxe5 {[%emt 0:00:16]} Nxe5 {[%emt 0:00:04]} 14. Kh1 {[%emt 0:00:02]} Ng4 {[%emt 0:00:33]} 15. Nf4 {[%emt 0:00:50]} exf5 {[%emt 0:00:44]} 16. Nxd5 {[%emt 0:00:10]} Qd6 {[%emt 0:00:06]} 17. Nxe7+ {[%emt 0:00:05]} Qxe7 {[%emt 0:00:06]} 18. Bf4 {[%emt 0:01:14]} g5 {[%emt 0:00:12]} 19. Bd2 {[%emt 0:00:07]} Qd6 {[%emt 0:00:12]} 20. g3 {[%emt 0:00:12]} b5 {[%emt 0:00:50]} 21. Qf3 {[%emt 0:00:42]} Qe7 {[%emt 0:02:26]} 22. Rae1 {[%emt 0:01:10]} Qb7 {[%emt 0:00:16]} 23. Bxf5 {[%emt 0:00:22]} Qxf3+ {[%emt 0:00:07]} 24. Rxf3 {[%emt 0:00:03]} Bxf5 {[%emt 0:00:48]} 25. Rxf5 {[%emt 0:00:03]} Rfe8 {[%emt 0:00:40]} 26. h3 {[%emt 0:01:17]} Rxe1+ {[%emt 0:00:05]} 27. Bxe1 {[%emt 0:00:03]} Re8 {[%emt 0:00:09]} 28. Bd2 {[%emt 0:00:18]} Ne3 {[%emt 0:00:18]} 29. Rf2 {[%emt 0:01:02]} Nd1 {[%emt 0:02:32]} 30. Rg2 {[%emt 0:04:42]} Nxb2 {[%emt 0:01:06]} 31. Bxg5 {[%emt 0:00:17]} hxg5 {[%emt 0:00:08]} 32. Rxb2 {[%emt 0:00:04]} Re1+ {[%emt 0:00:04]} 33. Kg2 {[%emt 0:00:03]} a6 {[%emt 0:00:03]} 34. Rc2 {[%emt 0:00:19]} Kg7 {[%emt 0:00:07]} 35. Kf3 {[%emt 0:00:04]} Kf6 {[%emt 0:00:07]} 36. a4 {[%emt 0:01:22]} bxa4 {[%emt 0:00:41]} 37. Ra2 {[%emt 0:00:03]} Rc1 {[%emt 0:00:12]} 38. Ra3 {[%emt 0:00:38]} Rd1 {[%emt 0:00:17]} 39. h4 {[%emt 0:00:16]} Rd3+ {[%emt 0:00:06]} 40. Kg4 {[%emt 0:00:04]} gxh4 {[%emt 0:00:06]} 41. gxh4 {[%emt 0:00:02]} Kg6 {[%emt 0:00:03]} 42. h5+ {[%emt 0:00:02]} Kh6 {[%emt 0:00:05]} 43. Rxa4 {[%emt 0:00:03]} Rxc3 {[%emt 0:00:06]} 44. Rxa6+ {[%emt 0:00:01]} Kh7 {[%emt 0:00:05]} 45. Kf5 {[%emt 0:00:04]} Rd3 {[%emt 0:00:07]} 46. Ke4 {[%emt 0:00:03]} Rh3 {[%emt 0:00:14]} 47. Rc6 {[%emt 0:02:04]} c3 {[%emt 0:00:33]} 48. d5 {[%emt 0:00:03]} Kg7 {[%emt 0:00:33]} 49. h6+ {[%emt 0:00:46]} Kf8 {[%emt 0:02:11]} 50. d6 {[%emt 0:00:11]} Rxh6 {[%emt 0:00:19]} 51. Rc8+ {[%emt 0:00:14]} Kg7 {[%emt 0:00:08]} 52. d7 {[%emt 0:00:01]} Re6+ {[%emt 0:00:22]} 53. Kd5 {[%emt 0:00:04]} Re2 {[%emt 0:02:18]} 54. d8=Q {[%emt 0:00:13]} Rd2+ {[%emt 0:00:12]} 55. Ke4 {[%emt 0:00:03]} Rxd8 {[%emt 0:01:30]} 56. Rxd8 {[%emt 0:00:04]} c2 {[%emt 0:00:14]} 57. Rc8 {[%emt 0:00:06]} Kg6 {[%emt 0:00:05]} 58. Rxc2 {[%emt 0:00:05]} Kf6 {[%emt 0:00:03]} 59. Kf4 {[%emt 0:00:03]} Kg6 {[%emt 0:00:05]} 60. Rc6+ {[%emt 0:00:02]} Kg7 {[%emt 0:00:03]} 61. Kf5 {[%emt 0:00:02]} Kh7 {[%emt 0:00:13]} 62. Kf6 {[%emt 0:00:03]} Kg8 {[%emt 0:00:05]} 63. Rc8+ {[%emt 0:00:07]} Kh7 {[%emt 0:00:04]} 64. Kxf7 {[%emt 0:00:31]} Kh6 {[%emt 0:00:03]} 65. Rg8 {[%emt 0:00:03]} Kh7 {[%emt 0:00:09]} 66. Rg1 {[%emt 0:00:03]} Kh6 {[%emt 0:00:05]} 67. Rg2 {[%emt 0:00:03]} Kh5 {[%emt 0:00:04]} 68. Kf6 {[%emt 0:00:02]} Kh4 {[%emt 0:00:04]} 69. Kf5 {[%emt 0:00:04]} Kh3 {[%emt 0:00:03]} 70. Rg8 {[%emt 0:00:02]} Kh4 {[%emt 0:00:04]} 71. Rg7 {[%emt 0:00:03]} Kh3 {[%emt 0:00:03]} 72. Kf4 {[%emt 0:00:01]} Kh2 {[%emt 0:00:03]} 73. Kf3 {[%emt 0:00:03]} Kh1 {[%emt 0:00:05]} 74. Kf2 {[%emt 0:00:01]} Kh2 {[%emt 0:00:03]} 75. Rh7# {[%emt 0:00:01]} 1-0